[Event "GER-ch Youth-U12 2024"]
[Site "Willingen"]
[Date "2024.05.19"]
[Round "2"]
[White "Shevchenko, Igor"]
[Black "Heitmann, Erik"]
[Result "1-0"]
[ECO "B28"]
[WhiteElo "1758"]
[BlackElo "1644"]
[Annotator "NA RC"]
[PlyCount "117"]
[EventDate "2022.06.05"]
[EventType "swiss"]
[EventRounds "9"]
[EventCountry "GER"]
[SourceTitle "playchess.com"]
[Source "ChessBase"]
[SourceQuality "1"]
[TimeControl "40/4500+30:900+30"]

1. d4 {[%emt 0:00:00]} Nf6 {[%emt 0:00:00]} 2. c4 {[%emt 0:00:00]} c5 {[%emt 0:00:00]} 3. Nf3 {[%emt 0:00:00]} cxd4 {[%emt 0:00:00]} 4. Nxd4 {[%emt 0:00:00]} Nc6 {[%emt 0:00:00]} 5. Nc3 {[%emt 0:00:00]} a6 {[%emt 0:00:00]} 6. e4 {[%emt 0:00:02]} e5 {[%emt 0:00:00]} 7. Nb3 {[%emt 0:02:59]} Bb4 {[%emt 0:00:00]} 8. Bd3 {[%emt 0:02:22]} Bxc3+ {[%emt 0:00:12]} 9. bxc3 {[%emt 0:00:45]} O-O {[%emt 0:01:30]} 10. O-O {[%emt 0:00:07]} b6 {[%emt 0:02:37]} 11. Be3 {[%emt 0:03:29]} d6 {[%emt 0:00:51]} 12. f3 {[%emt 0:00:06]} Qc7 {[%emt 0:01:40]} 13. Nd2 {[%emt 0:03:11]} Ne7 {[%emt 0:05:21]} 14. Rb1 {[%emt 0:00:51]} Nd7 {[%emt 0:01:52]} 15. Qe1 {[%emt 0:03:07]} Nc5 {[%emt 0:04:12]} 16. Be2 {[%emt 0:01:08]} f5 {[%emt 0:04:31]} 17. Qf2 {[%emt 0:04:02]} Rb8 {[%emt 0:22:31]} 18. Bxc5 {[%emt 0:00:42]} dxc5 {[%emt 0:02:59]} 19. exf5 {[%emt 0:00:20]} Bxf5 {[%emt 0:01:00]} 20. Rb2 {[%emt 0:01:36]} Rbd8 {[%emt 0:02:08]} 21. Qe3 {[%emt 0:02:52]} Ng6 {[%emt 0:01:13]} 22. Ne4 {[%emt 0:02:53]} Bxe4 {[%emt 0:03:19]} 23. Qxe4 {[%emt 0:00:47]} Rf4 {[%emt 0:02:29]} 24. Qb1 {[%emt 0:01:00]} Rd6 {[%emt 0:03:18]} 25. g3 {[%emt 0:01:54]} Rff6 {[%emt 0:04:07]} 26. Qe4 {[%emt 0:03:31]} Qd8 {[%emt 0:03:36]} 27. a4 {[%emt 0:03:29]} a5 {[%emt 0:00:58]} 28. Rfb1 {[%emt 0:01:15]} Rfe6 {[%emt 0:03:37]} 29. Qc2 {[%emt 0:11:05]} Qg5 {[%emt 0:02:43]} 30. Kf2 {[%emt 0:03:52]} Qf6 {[%emt 0:03:51]} 31. Bd3 {[%emt 0:02:26]} h5 {[%emt 0:01:11]} 32. Be4 {[%emt 0:00:52]} Ne7 {[%emt 0:00:59]} 33. Rd1 {[%emt 0:03:52]} h4 {[%emt 0:01:27]} 34. Bd5 {[%emt 0:02:48]} Nxd5 {[%emt 0:00:17]} 35. cxd5 {[%emt 0:00:04]} Re7 {[%emt 0:00:30]} 36. Qe4 {[%emt 0:01:03]} hxg3+ {[%emt 0:00:49]} 37. hxg3 {[%emt 0:00:36]} Qh6 {[%emt 0:00:25]} 38. Kg2 {[%emt 0:01:14]} Kf7 {[%emt 0:03:08]} 39. c4 {[%emt 0:02:25]} Qg5 {[%emt 0:02:50]} 40. Re2 {[%emt 0:04:43]} Rg6 {[%emt 0:01:43]} 41. g4 {[%emt 0:15:05]} Rd6 {[%emt 0:00:00]} 42. Rh1 {[%emt 0:00:00]} Qf4 {[%emt 0:02:42]} 43. Rh5 {[%emt 0:00:00]} Qxe4 {[%emt 0:00:57]} 44. Rxe4 {[%emt 0:00:00]} g6 {[%emt 0:04:11]} 45. Rh7+ {[%emt 0:00:00]} Kf6 {[%emt 0:00:23]} 46. g5+ {[%emt 0:00:00]} Kf5 {[%emt 0:00:36]} 47. Rxe7 {[%emt 0:00:00]} Kxg5 {[%emt 0:00:13]} 48. R4xe5+ {[%emt 0:00:00]} Kf6 {[%emt 0:00:12]} 49. R5e6+ {[%emt 0:00:00]} Kg5 {[%emt 0:00:15]} 50. Rxd6 {[%emt 0:00:00]} b5 {[%emt 0:00:06]} 51. cxb5 {[%emt 0:00:00]} c4 {[%emt 0:00:05]} 52. Rc6 {[%emt 0:00:00]} Kf5 {[%emt 0:00:11]} 53. d6 {[%emt 0:00:00]} c3 {[%emt 0:00:03]} 54. d7 {[%emt 0:00:00]} c2 {[%emt 0:00:05]} 55. d8=Q {[%emt 0:00:00]} c1=Q {[%emt 0:00:08]} 56. Rxc1 {[%emt 0:00:00]} g5 {[%emt 0:00:19]} 57. Qf8+ {[%emt 0:00:00]} Kg6 {[%emt 0:00:06]} 58. Rg7+ {[%emt 0:00:00]} Kh5 {[%emt 0:00:11]} 59. Rh1# {[%emt 0:00:20]} 1-0

[Event "GER-ch Youth-U12 2024"]
[Site "Willingen"]
[Date "2024.05.19"]
[Round "2"]
[White "Chua, Daniel James"]
[Black "Gao, Chenzhuo"]
[Result "1-0"]
[ECO "C11"]
[WhiteElo "1751"]
[BlackElo "1580"]
[Annotator "NA RC"]
[PlyCount "49"]
[EventDate "2022.06.05"]
[EventType "swiss"]
[EventRounds "9"]
[EventCountry "GER"]
[SourceTitle "playchess.com"]
[Source "ChessBase"]
[SourceQuality "1"]
[TimeControl "40/4500+30:900+30"]

1. e4 {[%emt 0:00:00]} e6 {[%emt 0:00:00]} 2. d4 {[%emt 0:00:00]} d5 {[%emt 0:00:00]} 3. Nc3 {[%emt 0:00:00]} Nf6 {[%emt 0:00:00]} 4. e5 {[%emt 0:00:00]} Nfd7 {[%emt 0:00:00]} 5. f4 {[%emt 0:00:00]} c5 {[%emt 0:00:00]} 6. Nf3 {[%emt 0:00:00]} Nc6 {[%emt 0:00:00]} 7. Be3 {[%emt 0:00:00]} Be7 {[%emt 0:00:00]} 8. Be2 {[%emt 0:00:00]} O-O {[%emt 0:00:00]} 9. Qd2 {[%emt 0:00:00]} Qa5 {[%emt 0:00:00]} 10. O-O-O {[%emt 0:00:00]} c4 {[%emt 0:00:00]} 11. g4 {[%emt 0:00:00]} b5 {[%emt 0:00:00]} 12. f5 {[%emt 0:00:00]} Nb4 {[%emt 0:09:58]} 13. Bg5 {[%emt 0:00:00]} Nxa2+ {[%emt 0:11:22]} 14. Nxa2 {[%emt 0:00:00]} Qxa2 {[%emt 0:00:09]} 15. Qf4 {[%emt 0:00:00]} Ba3 {[%emt 0:04:09]} 16. Kd2 {[%emt 0:00:00]} Bxb2 {[%emt 0:06:04]} 17. f6 {[%emt 0:00:00]} Qa3 {[%emt 0:04:01]} 18. Ke1 {[%emt 0:01:27]} Re8 {[%emt 0:02:53]} 19. fxg7 {[%emt 0:00:36]} Bc3+ {[%emt 0:01:56]} 20. Kf1 {[%emt 0:00:25]} Bb4 {[%emt 0:00:43]} 21. Bf6 {[%emt 0:00:39]} Nxf6 {[%emt 0:05:02]} 22. exf6 {[%emt 0:00:13]} Qa5 {[%emt 0:02:40]} 23. Qh6 {[%emt 0:00:26]} Qc7 {[%emt 0:04:07]} 24. Ng5 {[%emt 0:00:38]} Qf4+ {[%emt 0:03:58]} 25. Kg2 {[%emt 0:00:18]} 1-0

[Event "GER-ch Youth-U12 2024"]
[Site "Willingen"]
[Date "2024.05.19"]
[Round "2"]
[White "Schulz, Robin"]
[Black "Nezhyvenko, Mykhaylo"]
[Result "0-1"]
[ECO "B12"]
[WhiteElo "1730"]
[BlackElo "2075"]
[Annotator "NA RC"]
[PlyCount "110"]
[EventDate "2022.06.05"]
[EventType "swiss"]
[EventRounds "9"]
[EventCountry "GER"]
[SourceTitle "playchess.com"]
[Source "ChessBase"]
[SourceQuality "1"]
[TimeControl "40/4500+30:900+30"]

1. e4 {[%emt 0:00:00]} c6 {[%emt 0:00:00]} 2. d4 {[%emt 0:00:00]} d5 {[%emt 0:00:00]} 3. e5 {[%emt 0:00:00]} c5 {[%emt 0:00:00]} 4. c3 {[%emt 0:00:00]} cxd4 {[%emt 0:00:00]} 5. cxd4 {[%emt 0:00:00]} Nc6 {[%emt 0:00:00]} 6. Bb5 {[%emt 0:00:00]} Bf5 {[%emt 0:00:00]} 7. Nc3 {[%emt 0:00:00]} e6 {[%emt 0:00:00]} 8. h4 {[%emt 0:00:00]} h5 {[%emt 0:00:00]} 9. Nf3 {[%emt 0:00:00]} a6 {[%emt 0:00:00]} 10. Ba4 {[%emt 0:00:00]} b5 {[%emt 0:00:00]} 11. Bc2 {[%emt 0:00:00]} Nge7 {[%emt 0:00:00]} 12. Bg5 {[%emt 0:00:00]} Qb6 {[%emt 0:00:00]} 13. Ne2 {[%emt 0:00:00]} Rc8 {[%emt 0:00:00]} 14. Rc1 {[%emt 0:00:00]} Bxc2 {[%emt 0:00:00]} 15. Rxc2 {[%emt 0:00:00]} Nf5 {[%emt 0:00:00]} 16. O-O {[%emt 0:03:06]} Be7 {[%emt 0:00:00]} 17. Bxe7 {[%emt 0:00:16]} Nfxe7 {[%emt 0:00:03]} 18. Ng3 {[%emt 0:01:11]} g6 {[%emt 0:05:34]} 19. Qd2 {[%emt 0:04:34]} Kd7 {[%emt 0:02:06]} 20. a4 {[%emt 0:11:16]} bxa4 {[%emt 0:01:28]} 21. Ra1 {[%emt 0:00:27]} Qb5 {[%emt 0:04:13]} 22. Rc5 {[%emt 0:01:22]} Qb4 {[%emt 0:00:18]} 23. Qxb4 {[%emt 0:08:40]} Nxb4 {[%emt 0:00:03]} 24. Rxc8 {[%emt 0:01:05]} Rxc8 {[%emt 0:00:04]} 25. Rxa4 {[%emt 0:00:08]} Rc1+ {[%emt 0:00:10]} 26. Kh2 {[%emt 0:00:23]} Nec6 {[%emt 0:00:25]} 27. Ng5 {[%emt 0:07:33]} Ke7 {[%emt 0:00:27]} 28. Ra3 {[%emt 0:03:49]} Rc2 {[%emt 0:01:48]} 29. Rf3 {[%emt 0:02:26]} Nd8 {[%emt 0:00:39]} 30. Rb3 {[%emt 0:01:58]} Nbc6 {[%emt 0:00:32]} 31. Rb6 {[%emt 0:06:35]} Nxd4 {[%emt 0:00:18]} 32. Rxa6 {[%emt 0:01:11]} Rxb2 {[%emt 0:00:11]} 33. Ra7+ {[%emt 0:00:17]} Rb7 {[%emt 0:00:08]} 34. Ra4 {[%emt 0:00:42]} N4c6 {[%emt 0:00:12]} 35. Nf3 {[%emt 0:00:37]} Ra7 {[%emt 0:00:36]} 36. Rxa7+ {[%emt 0:00:53]} Nxa7 {[%emt 0:00:05]} 37. Ne2 {[%emt 0:00:12]} Nb5 {[%emt 0:00:11]} 38. Nfd4 {[%emt 0:00:50]} Nxd4 {[%emt 0:00:06]} 39. Nxd4 {[%emt 0:00:03]} Kd7 {[%emt 0:00:05]} 40. Nb5 {[%emt 0:02:08]} Nc6 {[%emt 0:00:11]} 41. f4 {[%emt 0:15:04]} Ke7 {[%emt 0:15:05]} 42. Kg3 {[%emt 0:01:14]} f6 {[%emt 0:00:17]} 43. exf6+ {[%emt 0:01:18]} Kxf6 {[%emt 0:00:02]} 44. Kf3 {[%emt 0:00:21]} e5 {[%emt 0:00:50]} 45. fxe5+ {[%emt 0:00:17]} Kxe5 {[%emt 0:00:05]} 46. g4 {[%emt 0:01:06]} Nd4+ {[%emt 0:00:19]} 47. Nxd4 {[%emt 0:00:37]} Kxd4 {[%emt 0:00:02]} 48. gxh5 {[%emt 0:00:53]} gxh5 {[%emt 0:00:04]} 49. Kf4 {[%emt 0:01:12]} Kc4 {[%emt 0:00:01]} 50. Kg5 {[%emt 0:00:14]} d4 {[%emt 0:00:01]} 51. Kxh5 {[%emt 0:00:26]} d3 {[%emt 0:00:01]} 52. Kg6 {[%emt 0:00:24]} d2 {[%emt 0:00:08]} 53. h5 {[%emt 0:00:02]} d1=Q {[%emt 0:00:11]} 54. h6 {[%emt 0:00:50]} Qg4+ {[%emt 0:00:43]} 55. Kh7 {[%emt 0:00:00]} Qg5 {[%emt 0:00:05]} 0-1

[Event "GER-ch Youth-U12 2024"]
[Site "Willingen"]
[Date "2024.05.19"]
[Round "2"]
[White "Gersemann, Karl"]
[Black "Sheng, Ming"]
[Result "0-1"]
[ECO "B11"]
[WhiteElo "1729"]
[BlackElo "2031"]
[Annotator "NA RC"]
[PlyCount "76"]
[EventDate "2022.06.05"]
[EventType "swiss"]
[EventRounds "9"]
[EventCountry "GER"]
[SourceTitle "playchess.com"]
[Source "ChessBase"]
[SourceQuality "1"]
[TimeControl "40/4500+30:900+30"]

1. e4 {[%emt 0:00:00]} c6 {[%emt 0:00:00]} 2. Nc3 {[%emt 0:00:00]} d5 {[%emt 0:00:00]} 3. Nf3 {[%emt 0:00:00]} Bg4 {[%emt 0:00:00]} 4. h3 {[%emt 0:00:00]} Bxf3 {[%emt 0:00:00]} 5. Qxf3 {[%emt 0:00:00]} e6 {[%emt 0:00:00]} 6. d3 {[%emt 0:00:00]} Nd7 {[%emt 0:00:00]} 7. Bd2 {[%emt 0:00:00]} Bc5 {[%emt 0:00:00]} 8. g4 {[%emt 0:00:00]} Qh4 {[%emt 0:00:00]} 9. Ne2 {[%emt 0:00:00]} dxe4 {[%emt 0:00:00]} 10. dxe4 {[%emt 0:01:02]} Qf6 {[%emt 0:00:00]} 11. Qxf6 {[%emt 0:00:40]} Ngxf6 {[%emt 0:00:00]} 12. Nc3 {[%emt 0:00:54]} Ne5 {[%emt 0:00:47]} 13. Be2 {[%emt 0:01:33]} O-O-O {[%emt 0:04:24]} 14. f4 {[%emt 0:02:50]} Ng6 {[%emt 0:03:06]} 15. O-O-O {[%emt 0:03:02]} Bb4 {[%emt 0:04:07]} 16. Bd3 {[%emt 0:00:30]} e5 {[%emt 0:07:38]} 17. f5 {[%emt 0:04:39]} Ne7 {[%emt 0:03:39]} 18. g5 {[%emt 0:04:04]} Ne8 {[%emt 0:02:32]} 19. Be3 {[%emt 0:03:55]} Bxc3 {[%emt 0:03:38]} 20. bxc3 {[%emt 0:00:07]} b6 {[%emt 0:01:12]} 21. Ba6+ {[%emt 0:09:08]} Kc7 {[%emt 0:03:38]} 22. Rxd8 {[%emt 0:00:12]} Kxd8 {[%emt 0:00:09]} 23. Rd1+ {[%emt 0:02:37]} Kc7 {[%emt 0:00:46]} 24. Bd3 {[%emt 0:00:54]} Nd6 {[%emt 0:05:36]} 25. h4 {[%emt 0:03:06]} c5 {[%emt 0:04:16]} 26. c4 {[%emt 0:02:03]} f6 {[%emt 0:01:20]} 27. Rg1 {[%emt 0:02:39]} Rg8 {[%emt 0:01:40]} 28. gxf6 {[%emt 0:01:28]} gxf6 {[%emt 0:00:04]} 29. Rxg8 {[%emt 0:00:11]} Nxg8 {[%emt 0:00:02]} 30. Kd2 {[%emt 0:00:50]} Kd7 {[%emt 0:00:30]} 31. Ke1 {[%emt 0:05:23]} Ke8 {[%emt 0:02:42]} 32. Kf1 {[%emt 0:03:32]} Ne7 {[%emt 0:00:39]} 33. Ke1 {[%emt 0:01:27]} Kf7 {[%emt 0:00:56]} 34. Bh6 {[%emt 0:02:29]} Nc6 {[%emt 0:00:26]} 35. Kd2 {[%emt 0:00:47]} Nd4 {[%emt 0:01:53]} 36. Ke3 {[%emt 0:05:16]} Kg8 {[%emt 0:00:22]} 37. Kf2 {[%emt 0:01:06]} Nc6 {[%emt 0:01:10]} 38. Be3 {[%emt 0:01:08]} Na5 {[%emt 0:03:38]} 0-1

[Event "GER-ch Youth-U12 2024"]
[Site "Willingen"]
[Date "2024.05.19"]
[Round "2"]
[White "Hepp, Daniel"]
[Black "Franke, Moritz"]
[Result "0-1"]
[ECO "A29"]
[WhiteElo "1721"]
[BlackElo "1597"]
[Annotator "NA RC"]
[PlyCount "48"]
[EventDate "2022.06.05"]
[EventType "swiss"]
[EventRounds "9"]
[EventCountry "GER"]
[SourceTitle "playchess.com"]
[Source "ChessBase"]
[SourceQuality "1"]
[TimeControl "40/4500+30:900+30"]

1. c4 {[%emt 0:00:00]} e5 {[%emt 0:00:00]} 2. Nc3 {[%emt 0:00:00]} Nc6 {[%emt 0:00:00]} 3. Nf3 {[%emt 0:00:00]} Bc5 {[%emt 0:00:00]} 4. g3 {[%emt 0:00:00]} d6 {[%emt 0:00:00]} 5. Bg2 {[%emt 0:00:00]} Nf6 {[%emt 0:00:00]} 6. d3 {[%emt 0:00:00]} O-O {[%emt 0:00:00]} 7. O-O {[%emt 0:00:00]} a6 {[%emt 0:00:00]} 8. a3 {[%emt 0:00:00]} Bd7 {[%emt 0:00:00]} 9. b4 {[%emt 0:00:00]} Ba7 {[%emt 0:00:00]} 10. Bb2 {[%emt 0:00:00]} Rb8 {[%emt 0:00:00]} 11. Rc1 {[%emt 0:00:00]} b5 {[%emt 0:00:00]} 12. Nd2 {[%emt 0:00:17]} Ne7 {[%emt 0:00:36]} 13. Nce4 {[%emt 0:08:14]} Nxe4 {[%emt 0:00:28]} 14. Nxe4 {[%emt 0:03:59]} Bc6 {[%emt 0:01:19]} 15. e3 {[%emt 0:11:55]} bxc4 {[%emt 0:02:21]} 16. dxc4 {[%emt 0:00:58]} f5 {[%emt 0:00:16]} 17. Ng5 {[%emt 0:05:51]} Bxg2 {[%emt 0:00:41]} 18. Kxg2 {[%emt 0:00:37]} Qd7 {[%emt 0:00:16]} 19. c5 {[%emt 0:06:05]} Qc6+ {[%emt 0:00:08]} 20. Kg1 {[%emt 0:02:41]} dxc5 {[%emt 0:02:26]} 21. Qb3+ {[%emt 0:04:10]} Kh8 {[%emt 0:01:41]} 22. Nf7+ {[%emt 0:00:26]} Kg8 {[%emt 0:00:08]} 23. Nh6+ {[%emt 0:00:06]} Kh8 {[%emt 0:00:09]} 24. Qg8+ {[%emt 0:00:05]} Nxg8 {[%emt 0:00:02]} 0-1

[Event "GER-ch Youth-U12 2024"]
[Site "Willingen"]
[Date "2024.05.19"]
[Round "2"]
[White "Wagener, Nicolas"]
[Black "Rinke, Alexander"]
[Result "1-0"]
[ECO "B10"]
[WhiteElo "1713"]
[BlackElo "1596"]
[Annotator "NA RC"]
[PlyCount "63"]
[EventDate "2022.06.05"]
[EventType "swiss"]
[EventRounds "9"]
[EventCountry "GER"]
[SourceTitle "playchess.com"]
[Source "ChessBase"]
[SourceQuality "1"]
[TimeControl "40/4500+30:900+30"]

1. e4 {[%emt 0:00:00]} c6 {[%emt 0:00:00]} 2. Nf3 {[%emt 0:00:00]} d5 {[%emt 0:00:00]} 3. exd5 {[%emt 0:00:00]} cxd5 {[%emt 0:00:00]} 4. Ne5 {[%emt 0:00:00]} Nc6 {[%emt 0:00:00]} 5. Bb5 {[%emt 0:00:00]} Bd7 {[%emt 0:00:00]} 6. Nxd7 {[%emt 0:00:00]} Qxd7 {[%emt 0:00:00]} 7. O-O {[%emt 0:00:00]} a6 {[%emt 0:00:00]} 8. Bxc6 {[%emt 0:00:00]} Qxc6 {[%emt 0:00:00]} 9. Re1 {[%emt 0:00:00]} e6 {[%emt 0:00:00]} 10. d4 {[%emt 0:00:00]} Nf6 {[%emt 0:00:00]} 11. Bg5 {[%emt 0:00:00]} Be7 {[%emt 0:00:00]} 12. Nd2 {[%emt 0:00:00]} O-O {[%emt 0:00:00]} 13. Nf3 {[%emt 0:00:00]} Rac8 {[%emt 0:00:23]} 14. c3 {[%emt 0:00:00]} b5 {[%emt 0:02:31]} 15. Ne5 {[%emt 0:00:00]} Qb7 {[%emt 0:00:38]} 16. Re3 {[%emt 0:00:00]} b4 {[%emt 0:09:13]} 17. cxb4 {[%emt 0:00:00]} Qxb4 {[%emt 0:00:29]} 18. Bxf6 {[%emt 0:00:00]} Bxf6 {[%emt 0:00:30]} 19. Nd7 {[%emt 0:00:00]} Bxd4 {[%emt 0:09:43]} 20. Rb3 {[%emt 0:00:00]} Qc4 {[%emt 0:01:42]} 21. Nxf8 {[%emt 0:00:00]} Kxf8 {[%emt 0:01:01]} 22. g3 {[%emt 0:05:08]} Qc5 {[%emt 0:02:40]} 23. Qf3 {[%emt 0:01:19]} Qc2 {[%emt 0:01:18]} 24. Rb7 {[%emt 0:01:35]} Bf6 {[%emt 0:04:53]} 25. Qa3+ {[%emt 0:01:22]} Kg8 {[%emt 0:02:03]} 26. Qxa6 {[%emt 0:00:25]} Bd4 {[%emt 0:02:55]} 27. Rf1 {[%emt 0:00:24]} e5 {[%emt 0:08:07]} 28. Qd6 {[%emt 0:03:33]} e4 {[%emt 0:03:21]} 29. Qxd5 {[%emt 0:01:45]} Qc4 {[%emt 0:02:30]} 30. Qxc4 {[%emt 0:00:21]} Rxc4 {[%emt 0:00:10]} 31. Rb8+ {[%emt 0:00:09]} Rc8 {[%emt 0:00:10]} 32. Rxc8# {[%emt 0:00:36]} 1-0

[Event "GER-ch Youth-U12 2024"]
[Site "Willingen"]
[Date "2024.05.19"]
[Round "2"]
[White "Sasikumar Anitha, Sarvesh"]
[Black "Vartanian, Roman"]
[Result "0-1"]
[ECO "B33"]
[WhiteElo "1703"]
[BlackElo "1797"]
[Annotator "NA"]
[PlyCount "74"]
[EventDate "2022.06.05"]
[EventType "swiss"]
[EventRounds "9"]
[EventCountry "GER"]
[SourceTitle "playchess.com"]
[Source "ChessBase"]
[SourceQuality "1"]
[TimeControl "40/4500+30:900+30"]

1. e4 {[%emt 0:00:00]} c5 {[%emt 0:00:00]} 2. Nf3 {[%emt 0:00:00]} Nc6 {[%emt 0:00:00]} 3. d4 {[%emt 0:00:00]} cxd4 {[%emt 0:00:00]} 4. Nxd4 {[%emt 0:00:00]} Nf6 {[%emt 0:00:00]} 5. Nc3 {[%emt 0:00:00]} e5 {[%emt 0:00:00]} 6. Ndb5 {[%emt 0:00:00]} d6 {[%emt 0:00:00]} 7. Nd5 {[%emt 0:00:00]} Nxd5 {[%emt 0:00:00]} 8. exd5 {[%emt 0:00:00]} Ne7 {[%emt 0:00:00]} 9. c4 {[%emt 0:00:00]} a6 {[%emt 0:00:00]} 10. Nc3 {[%emt 0:00:00]} Ng6 {[%emt 0:00:00]} 11. Bd3 {[%emt 0:00:00]} Be7 {[%emt 0:00:00]} 12. O-O {[%emt 0:00:00]} O-O {[%emt 0:00:00]} 13. Qh5 {[%emt 0:11:31]} f5 {[%emt 0:00:17]} 14. g3 {[%emt 0:04:34]} Bd7 {[%emt 0:05:35]} 15. h4 {[%emt 0:06:09]} e4 {[%emt 0:02:25]} 16. Bc2 {[%emt 0:01:45]} Ne5 {[%emt 0:01:15]} 17. Qe2 {[%emt 0:04:33]} Bxh4 {[%emt 0:20:09]} 18. Bf4 {[%emt 0:06:17]} Bf6 {[%emt 0:01:48]} 19. Kg2 {[%emt 0:03:14]} Rc8 {[%emt 0:03:14]} 20. Bb3 {[%emt 0:01:31]} Be8 {[%emt 0:03:07]} 21. Rh1 {[%emt 0:04:49]} Nd3 {[%emt 0:02:12]} 22. Be3 {[%emt 0:02:46]} b5 {[%emt 0:02:03]} 23. Rh2 {[%emt 0:07:39]} bxc4 {[%emt 0:01:20]} 24. Ba4 {[%emt 0:00:54]} Bg6 {[%emt 0:01:49]} 25. Rah1 {[%emt 0:01:54]} Ne5 {[%emt 0:01:15]} 26. Bd1 {[%emt 0:01:42]} Bg5 {[%emt 0:01:51]} 27. Qd2 {[%emt 0:01:08]} Bxe3 {[%emt 0:00:41]} 28. Qxe3 {[%emt 0:00:34]} Qf6 {[%emt 0:01:02]} 29. Bh5 {[%emt 0:00:48]} Bxh5 {[%emt 0:00:36]} 30. Rxh5 {[%emt 0:00:10]} h6 {[%emt 0:00:36]} 31. Ne2 {[%emt 0:01:02]} Ng4 {[%emt 0:03:16]} 32. Qb6 {[%emt 0:01:50]} Rb8 {[%emt 0:02:06]} 33. Qxa6 {[%emt 0:00:40]} Rxb2 {[%emt 0:02:02]} 34. Qxc4 {[%emt 0:00:14]} Ne5 {[%emt 0:01:13]} 35. Qa6 {[%emt 0:00:08]} Nd3 {[%emt 0:00:18]} 36. Nf4 {[%emt 0:00:32]} Rxf2+ {[%emt 0:00:21]} 37. Kg1 {[%emt 0:00:13]} Qa1# {[%emt 0:00:06]} 0-1

[Event "GER-ch Youth-U12 2024"]
[Site "Willingen"]
[Date "2024.05.19"]
[Round "2"]
[White "Andersen, Jonathan"]
[Black "Fadeev, Justin Michael"]
[Result "0-1"]
[ECO "C02"]
[WhiteElo "1693"]
[BlackElo "1762"]
[Annotator "NA RC"]
[PlyCount "58"]
[EventDate "2022.06.05"]
[EventType "swiss"]
[EventRounds "9"]
[EventCountry "GER"]
[SourceTitle "playchess.com"]
[Source "ChessBase"]
[SourceQuality "1"]
[TimeControl "40/4500+30:900+30"]

1. e4 {[%emt 0:00:00]} e6 {[%emt 0:00:00]} 2. d4 {[%emt 0:00:00]} d5 {[%emt 0:00:00]} 3. e5 {[%emt 0:00:00]} c5 {[%emt 0:00:00]} 4. c3 {[%emt 0:00:00]} Qb6 {[%emt 0:00:00]} 5. a3 {[%emt 0:00:00]} Nc6 {[%emt 0:00:00]} 6. Nf3 {[%emt 0:00:00]} c4 {[%emt 0:00:00]} 7. Be2 {[%emt 0:00:00]} Na5 {[%emt 0:00:00]} 8. Nbd2 {[%emt 0:00:00]} Bd7 {[%emt 0:00:00]} 9. O-O {[%emt 0:00:00]} h6 {[%emt 0:00:00]} 10. Qc2 {[%emt 0:00:00]} Ne7 {[%emt 0:00:00]} 11. Re1 {[%emt 0:00:00]} O-O-O {[%emt 0:00:00]} 12. Rb1 {[%emt 0:00:00]} Kb8 {[%emt 0:01:48]} 13. Bd1 {[%emt 0:00:00]} Rc8 {[%emt 0:09:59]} 14. b3 {[%emt 0:00:00]} cxb3 {[%emt 0:01:38]} 15. Nxb3 {[%emt 0:00:00]} Nxb3 {[%emt 0:03:56]} 16. Rxb3 {[%emt 0:08:28]} Ba4 {[%emt 0:01:38]} 17. Rxb6 {[%emt 0:00:06]} Bxc2 {[%emt 0:00:07]} 18. Rd6 {[%emt 0:00:25]} Bxd1 {[%emt 0:00:30]} 19. Rxd1 {[%emt 0:00:06]} Kc7 {[%emt 0:09:58]} 20. g4 {[%emt 0:02:29]} Ng6 {[%emt 0:00:17]} 21. h4 {[%emt 0:00:21]} Bxd6 {[%emt 0:01:41]} 22. exd6+ {[%emt 0:00:05]} Kxd6 {[%emt 0:00:20]} 23. h5 {[%emt 0:00:06]} Ne7 {[%emt 0:01:01]} 24. Bf4+ {[%emt 0:00:37]} Kd7 {[%emt 0:01:35]} 25. Ne5+ {[%emt 0:00:08]} Ke8 {[%emt 0:00:04]} 26. Rb1 {[%emt 0:00:35]} b6 {[%emt 0:00:41]} 27. Bd2 {[%emt 0:00:27]} Nc6 {[%emt 0:00:18]} 28. Nd3 {[%emt 0:00:20]} Na5 {[%emt 0:03:28]} 29. Re1 {[%emt 0:00:57]} Nb3 {[%emt 0:01:46]} 0-1

[Event "GER-ch Youth-U12 2024"]
[Site "Willingen"]
[Date "2024.05.19"]
[Round "2"]
[White "Subocz, Barbara"]
[Black "Sun, Christopher"]
[Result "0-1"]
[ECO "C18"]
[WhiteElo "1692"]
[BlackElo "1714"]
[Annotator "NA"]
[PlyCount "50"]
[EventDate "2022.06.05"]
[EventType "swiss"]
[EventRounds "9"]
[EventCountry "GER"]
[SourceTitle "playchess.com"]
[Source "ChessBase"]
[SourceQuality "1"]
[TimeControl "40/4500+30:900+30"]

1. e4 {[%emt 0:00:00]} e6 {[%emt 0:00:10]} 2. d4 {[%emt 0:00:00]} d5 {[%emt 0:00:00]} 3. Nc3 {[%emt 0:00:00]} Bb4 {[%emt 0:00:00]} 4. e5 {[%emt 0:00:13]} c5 {[%emt 0:00:00]} 5. a3 {[%emt 0:00:00]} Bxc3+ {[%emt 0:00:00]} 6. bxc3 {[%emt 0:00:00]} Qa5 {[%emt 0:00:00]} 7. Bd2 {[%emt 0:00:00]} Nc6 {[%emt 0:00:00]} 8. Ne2 {[%emt 0:00:00]} Nge7 {[%emt 0:00:00]} 9. Ng3 {[%emt 0:03:49]} Qa4 {[%emt 0:00:00]} 10. Bd3 {[%emt 0:03:24]} cxd4 {[%emt 0:03:49]} 11. cxd4 {[%emt 0:01:06]} Qxd4 {[%emt 0:01:00]} 12. O-O {[%emt 0:01:55]} Bd7 {[%emt 0:03:45]} 13. Rb1 {[%emt 0:00:49]} b6 {[%emt 0:03:03]} 14. Be3 {[%emt 0:02:21]} Qxe5 {[%emt 0:01:53]} 15. Re1 {[%emt 0:02:39]} Qc7 {[%emt 0:01:08]} 16. Qg4 {[%emt 0:01:32]} Ng6 {[%emt 0:03:21]} 17. Bxg6 {[%emt 0:02:58]} hxg6 {[%emt 0:01:31]} 18. Rbd1 {[%emt 0:02:46]} O-O-O {[%emt 0:06:30]} 19. Qe2 {[%emt 0:03:16]} Kb7 {[%emt 0:02:20]} 20. Rb1 {[%emt 0:00:28]} Rc8 {[%emt 0:05:43]} 21. Rec1 {[%emt 0:04:07]} Ne7 {[%emt 0:06:08]} 22. a4 {[%emt 0:00:53]} Bxa4 {[%emt 0:13:10]} 23. c3 {[%emt 0:02:56]} Nf5 {[%emt 0:02:38]} 24. Nxf5 {[%emt 0:01:32]} Qxh2+ {[%emt 0:00:40]} 25. Kf1 {[%emt 0:00:05]} Qh1# {[%emt 0:00:14]} 0-1